bitfinex-derivatives/quotes_ETHF0:USTF0_20250411
["timestamp","ask_amount","ask_price","bid_price","bid_amount"]
[1744338534391,28.44576027,1548.7,1548.5,1.29253]
[1744338534586,2.54545237,1548.6,1548.5,1.29253]
[1744338534787,2.54545237,1548.6,1548.5,2.06958349]
[1744338534990,3.2078,1549.1,1548.5,2.06958349]
[1744338534991,2.7545,1549.5,1548.9,3.2305]
[1744338535188,26.5398546,1549.5,1549.4,1.29182]
[1744338535386,2.7545,1549.6,1549.5,1.30482151]
[1744338535584,28.43608223,1549.6,1549.5,0.01308151]
[1744338535788,0.999,1549.7,1549.6,1.30474151]
[1744338535993,5.828,1549.8,1549.7,1.29157]
[1744338536187,31.51926027,1549.8,1549.7,1.29157]
[1744338536496,32.36445113,1549.8,1549.6,1.29158]
[1744338536685,1.29166,1549.6,1549.5,0.00967804]
[1744338536886,2.14993237,1549.6,1549.5,0.00967804]
[1744338537087,38.6025146,1549.6,1549.5,0.00967804]
[1744338537889,1.29196,1549.3,1549.1,7.045]
[1744338538088,3.42147237,1549.2,1549.1,7.03191849]
[1744338538287,3.42147237,1549.2,1549.0,1.29214]
[1744338538590,0.85827237,1549.1,1548.8,7.044]
[1744338538898,2.5632,1549.0,1548.9,1.29222]
[1744338539189,0.85827237,1549.0,1548.9,1.29222]
[1744338539497,1.2918,1549.5,1549.2,1.29198]
[1744338539694,2.5626,1549.3,1549.2,1.29199]
[1744338539992,4.71283237,1549.3,1549.0,1.29215]
[1744338540191,0.85827237,1549.1,1548.8,35.10609166]
[1744338540394,3.42087237,1549.0,1548.9,1.29219]
[1744338540695,0.85827237,1549.0,1548.9,1.29219]
[1744338540892,2.5626,1549.2,1548.8,35.10609166]
[1744338541094,0.85827237,1549.1,1549.0,1.29216]
[1744338541797,0.85827237,1549.1,1548.9,1.29219]
[1744338541995,0.85827237,1548.9,1548.8,24.85429166]
[1744338542193,5.35831237,1548.9,1548.8,24.85429166]
[1744338542393,31.0398946,1548.9,1548.8,24.85429166]
[1744338542695,33.7990946,1548.9,1548.8,0.00967804]
[1744338543098,1.29239,1548.8,1548.4,25.08792855]
[1744338543299,3.61747237,1548.7,1548.6,1.29247]
[1744338543494,0.85827237,1548.6,1548.5,1.29251]
[1744338543889,26.5398546,1548.6,1548.4,23.17274855]
[1744338544194,3.61747237,1548.5,1548.4,23.17274855]
[1744338544392,3.65775804,1549.0,1548.8,1.29232]
[1744338544598,0.85827237,1548.8,1548.7,1.29235]
[1744338544997,2.7592,1548.9,1548.8,1.29232]
[1744338545200,0.85827237,1548.8,1548.7,1.29235]
[1744338545793,4.05145,1548.9,1548.7,1.29235]
[1744338545994,0.85827237,1548.8,1548.6,3.2078]
[1744338546286,0.85827237,1548.8,1548.5,0.77671]
[1744338546287,3.60467237,1548.7,1548.4,25.86463855]
[1744338546486,0.85827237,1548.9,1548.6,3.2078]
[1744338546694,0.85827237,1548.8,1548.7,3.97015]
[1744338547094,2.7464,1548.9,1548.8,1.29232]
[1744338547295,28.42798223,1548.9,1548.8,1.29232]
[1744338547494,29.2862546,1548.9,1548.8,1.29232]
[1744338547698,29.2862546,1548.9,1548.7,3.97014]
[1744338547900,0.85827237,1548.8,1548.7,2.6778]
[1744338548101,3.60467237,1548.8,1548.7,2.6778]
[1744338548294,4.89699237,1548.8,1548.7,2.6778]
[1744338548494,3.60467237,1548.8,1548.7,2.6778]
[1744338548697,29.2862546,1548.8,1548.5,2.06923]
[1744338548898,2.15076237,1548.6,1548.5,2.6157]
[1744338549203,1.29247,1548.7,1548.5,2.6157]
[1744338549405,3.57007237,1548.6,1548.5,2.6157]
[1744338549794,4.00429,1548.6,1548.5,2.6157]
[1744338549996,2.7118,1548.6,1548.5,2.6157]
[1744338550199,2.7118,1548.6,1548.5,3.90827]
[1744338550401,2.7118,1548.6,1548.5,2.6157]
[1744338550602,2.7118,1548.6,1548.5,1.29257]
[1744338550796,2.7118,1548.6,1548.4,5.992]
[1744338550797,29.2516546,1548.6,1548.4,8.6077]
[1744338551104,0.85827237,1548.5,1548.3,3.99418804]
[1744338551401,4.91193237,1548.4,1548.3,0.00967804]
[1744338551597,8.11973237,1548.4,1548.3,0.00967804]
[1744338551799,35.5935146,1548.4,1548.3,0.00967804]
[1744338552003,2.15118237,1548.1,1548.0,32.74959293]
[1744338552198,5.35898237,1548.1,1548.0,32.74959293]
[1744338552395,10.35898237,1548.1,1548.0,27.91722605]
[1744338552600,1.29308,1547.9,1547.8,14.87205112]
[1744338552800,11.41188,1547.9,1547.8,13.65180112]
[1744338553109,16.41188,1547.9,1547.8,12.16004112]
[1744338554107,16.41188,1547.9,1547.8,10.62633112]
[1744338554405,16.41188,1547.9,1547.8,9.36723112]
[1744338555106,16.41188,1547.9,1547.8,8.00920112]
[1744338555304,16.41188,1547.9,1547.8,5.29532112]
[1744338555510,16.41188,1547.9,1547.8,1.12e-06]
[1744338555701,18.94788,1547.9,1547.8,1.12e-06]
[1744338555901,21.18968,1547.9,1547.8,1.12e-06]
[1744338556302,23.82079849,1547.9,1547.8,1.12e-06]
[1744338556803,1.29324,1547.7,1547.6,17.31841261]
[1744338557010,9.50104,1547.7,1547.6,14.52509261]
[1744338557209,9.50104,1547.7,1547.6,12.77852261]
[1744338557509,9.50104,1547.7,1547.6,6.90991261]
[1744338557714,9.50104,1547.7,1547.6,4.27305261]
[1744338557915,1.2936,1547.3,1547.0,3.92641]
[1744338558109,1.2936,1547.3,1547.2,2.6326]
[1744338559011,3.2078,1547.4,1547.2,2.6326]
[1744338559206,4.03916,1547.4,1547.2,2.6326]
[1744338559515,8.20746,1547.5,1547.2,2.6326]
[1744338559713,8.20746,1547.5,1547.3,1.29355]
[1744338559906,8.20746,1547.5,1547.4,2.6326]
[1744338560108,1.29346,1547.5,1547.4,2.6326]
[1744338560307,2.7456,1547.5,1547.1,1.29372]
[1744338560513,1.29353,1547.4,1547.2,2.6554]
[1744338560717,2.7456,1547.5,1547.2,2.6554]
[1744338561013,4.03904,1547.5,1547.2,2.6554]
[1744338561219,4.03904,1547.5,1547.2,3.94899]
[1744338561409,4.03904,1547.5,1547.3,1.29358]
[1744338561707,4.03904,1547.5,1547.4,2.6554]
[1744338563111,4.03904,1547.5,1547.2,1.29363]
[1744338563112,1.29353,1547.4,1547.2,1.29364]
[1744338563313,2.7456,1547.5,1546.9,3.2078]
[1744338563314,1.29369,1547.2,1546.9,3.2078]
[1744338563617,1.29367,1547.2,1547.0,2.7897]
[1744338563820,1.30334804,1547.2,1547.0,4.08351]
[1744338564117,0.00967804,1547.2,1547.1,1.29374]
[1744338565917,1.29374,1547.1,1547.0,2.7897]
[1744338566122,1.294,1546.8,1546.7,2.242]
[1744338566324,1.29393,1546.9,1546.7,6.32573]
[1744338566620,0.00967804,1547.2,1546.7,8.2395]
[1744338566816,2.65117804,1547.2,1546.9,1.29384]
[1744338567014,1.29374,1547.1,1547.0,2.6677]
[1744338567211,0.00967804,1547.2,1547.1,1.29374]
[1744338567618,0.00967804,1547.2,1547.1,4.50154]
[1744338567825,0.00967804,1547.2,1547.1,1.29374]
[1744338569724,0.00967804,1547.2,1547.1,4.50154]
[1744338571425,0.00967804,1547.2,1547.1,11.92504]
[1744338573818,0.00967804,1547.2,1547.1,3.71724]
[1744338575029,1.30337804,1547.2,1547.0,7.1693]
[1744338575221,2.72677804,1547.2,1547.1,1.29374]
[1744338575417,0.00967804,1547.2,1547.1,1.29374]
[1744338576431,0.00967804,1547.2,1547.1,4.50154]
[1744338576827,0.00967804,1547.2,1547.1,9.50154]
[1744338577535,0.00967804,1547.2,1547.1,1.29374]
[1744338577726,0.00967804,1547.2,1547.0,2.6677]
[1744338578035,1.30333804,1547.2,1547.0,3.96147]
[1744338578234,1.29374,1547.1,1547.0,3.96153]
[1744338578535,1.29374,1547.1,1547.0,2.6677]
[1744338578830,1.30339804,1547.2,1547.0,3.96151]
[1744338579035,1.29374,1547.1,1547.0,2.6677]
[1744338579230,4.02674,1547.1,1547.0,2.6677]
[1744338580625,1.29391,1546.9,1546.7,7.7552]
[1744338580825,1.29391,1546.9,1546.8,1.294]
[1744338581023,1.294,1546.8,1546.7,9.04924]
[1744338581230,1.29409,1546.7,1546.5,2.13926438]
[1744338581429,1.29409,1546.7,1546.5,1.2942]
[1744338581629,1.29409,1546.7,1546.6,0.78231744]
[1744338582029,5.9945,1546.8,1546.6,0.78231744]
[1744338582230,7.28853,1546.8,1546.7,2.6595]
[1744338582431,5.9945,1546.8,1546.7,2.6595]
[1744338582633,7.2885,1546.8,1546.7,2.6595]
[1744338582824,10.9945,1546.8,1546.6,0.78231744]
[1744338583023,10.9945,1546.8,1546.4,4.05319385]
[1744338583024,1.29425,1546.5,1546.4,2.6595]
[1744338583635,4.08095,1546.5,1546.4,2.6595]
[1744338583832,2.7867,1546.5,1546.2,0.84555537]
[1744338584033,1.29441,1546.3,1546.2,2.6595]
[1744338584331,1.29441,1546.3,1546.2,3.44116478]
[1744338584528,0.00967804,1546.4,1546.2,3.44116478]
[1744338584729,1.30401804,1546.4,1546.2,3.44116478]
[1744338584929,1.30400804,1546.4,1546.2,4.73561478]
[1744338585139,0.00967804,1546.4,1546.2,2.6595]
[1744338585340,1.29441,1546.3,1546.2,2.6595]
[1744338585540,3.91931,1546.3,1546.2,2.6595]
[1744338585727,2.6249,1546.3,1546.1,3.2078]
[1744338585935,3.2078,1546.2,1545.8,2.8369]
[1744338586128,1.29473,1546.0,1545.9,0.78144675]
[1744338586441,2.6249,1546.3,1545.9,2.07612675]
[1744338586642,1.29464,1546.1,1545.9,2.07617675]
[1744338586939,1.29452,1546.2,1545.8,3.98924675]
[1744338587341,1.2945,1546.2,1545.9,1.29468]
[1744338587541,2.6249,1546.1,1545.9,1.29468]
[1744338588142,2.6249,1546.1,1545.8,3.2078]
[1744338588641,2.6249,1546.1,1545.7,0.78144675]
[1744338588642,9.86847804,1546.4,1546.1,1.29456]
[1744338588940,3.99214,1546.3,1546.1,1.29456]
[1744338589147,2.6977,1546.3,1546.0,3.2078]
[1744338589441,3.21747804,1546.4,1546.3,1.29441]
[1744338590139,3.21747804,1546.4,1546.3,6.29441]
[1744338590545,3.21747804,1546.4,1546.3,1.29441]
[1744338590737,0.00967804,1546.4,1546.3,1.29441]
[1744338592446,0.00967804,1546.4,1546.2,4.50223]
[1744338593147,0.00967804,1546.4,1546.2,4.50222]
[1744338593451,0.00967804,1546.4,1546.3,1.29441]
[1744338593945,0.00967804,1546.4,1546.3,6.29441]
[1744338594440,0.00967804,1546.4,1546.3,1.29441]
[1744338595535,0.00967804,1546.4,1546.3,2.07366478]
[1744338596344,0.00967804,1546.4,1546.3,1.29441]
[1744338596546,0.00967804,1546.4,1546.3,4.06291]
[1744338596936,0.00967804,1546.4,1546.3,2.7685]
[1744338597135,0.00967804,1546.4,1546.3,4.06291]
[1744338599448,1.30400804,1546.4,1546.3,2.7685]
[1744338599643,3.89270804,1546.4,1546.3,2.7685]
[1744338599846,1.29454,1546.2,1546.0,0.77925478]
[1744338600043,2.59837804,1546.4,1546.1,2.753]
[1744338600247,3.89273804,1546.4,1546.2,1.29446]
[1744338600446,2.59837804,1546.4,1546.1,2.753]
[1744338600647,0.00967804,1546.4,1546.3,1.29441]
[1744338601154,0.00967804,1546.4,1546.2,5.6453]
[1744338601354,0.00967804,1546.4,1546.3,4.04741]
[1744338601658,3.2078,1546.8,1546.7,1.29408]
[1744338601845,5.9409,1547.1,1546.5,3.2078]
[1744338602047,1.29387,1547.0,1546.5,5.9608]
[1744338602246,2.7331,1547.0,1546.6,3.2078]
[1744338602453,1.294,1546.8,1546.7,2.753]
[1744338602754,1.29402,1546.8,1546.6,1.29413]
[1744338603059,1.30362804,1546.9,1546.7,4.04037]
[1744338603248,1.30362804,1546.9,1546.7,2.7463]
[1744338603442,4.10262804,1546.9,1546.7,4.04038]
[1744338603648,2.80867804,1546.9,1546.7,2.7463]
[1744338603853,6.01647804,1546.9,1546.6,0.00967804]
[1744338604052,1.29408,1546.7,1546.6,0.00967804]
[1744338604250,6.01647804,1546.9,1546.6,0.00967804]
[1744338604455,6.01647804,1546.9,1546.6,1.30377804]
[1744338604456,7.31042804,1546.9,1546.6,1.30377804]
[1744338604658,1.294,1546.8,1546.7,2.7463]
[1744338604847,7.31042804,1546.9,1546.7,2.7463]
[1744338605255,2.80867804,1546.9,1546.7,2.7463]
[1744338605450,0.00967804,1546.9,1546.8,1.294]
[1744338606644,0.00967804,1546.9,1546.7,6.37492]
[1744338606856,0.00967804,1546.9,1546.7,5.0809]
[1744338607152,0.00967804,1546.9,1546.8,1.294]
[1744338607555,0.00967804,1546.9,1546.8,4.5018]
[1744338609755,0.00967804,1546.9,1546.8,5.28105478]
[1744338610255,1.30360804,1546.9,1546.7,7.15420478]
[1744338610555,0.00967804,1546.9,1546.8,1.294]
[1744338612663,0.00967804,1546.9,1546.8,4.5018]
[1744338613054,1.30358804,1546.9,1546.8,3.2078]
[1744338613257,0.00967804,1546.9,1546.8,4.5018]
[1744338613454,2.67167804,1546.9,1546.8,4.5018]
[1744338615259,0.00967804,1546.9,1546.8,4.5018]
[1744338615957,1.294,1546.8,1546.7,2.7463]
[1744338616260,1.29408,1546.7,1546.6,3.21747804]
[1744338616860,3.99096,1546.8,1546.6,4.51162804]
[1744338617362,1.29408,1546.7,1546.6,3.21747804]
[1744338617562,3.99098,1546.7,1546.6,3.21747804]
[1744338617961,3.99098,1546.7,1546.6,4.51163804]
[1744338618155,2.6969,1546.7,1546.6,4.51163804]
[1744338618562,1.30365804,1546.9,1546.7,1.29406]
[1744338618761,2.93547804,1546.9,1546.8,1.294]
[1744338619660,0.00967804,1546.9,1546.8,1.294]
[1744338619862,0.00967804,1546.9,1546.8,4.5018]
[1744338620167,0.00967804,1546.9,1546.8,5.28105478]
[1744338620366,0.00967804,1546.9,1546.8,10.28105478]
[1744338620666,5.02540794,1547.2,1547.0,1.29378]
[1744338620866,5.02540794,1547.2,1547.1,4.24224]
[1744338621067,5.02540794,1547.2,1547.1,5.02149478]
[1744338622969,7.54778995,1547.3,1547.1,5.02149478]
[1744338622970,7.54778995,1547.3,1547.2,1.29366]
[1744338623161,5.05969543,1547.7,1547.6,1.29333]
[1744338623662,5.05969543,1547.7,1547.4,3.98705478]
[1744338623967,1.29341,1547.5,1547.4,0.77925478]
[1744338624169,1.29338,1547.6,1547.4,3.73535478]
[1744338624371,3.007,1547.5,1547.4,2.9561]
[1744338624961,4.30041,1547.5,1547.4,2.9561]
[1744338625562,3.007,1547.5,1547.4,2.9561]
[1744338625867,3.007,1547.5,1547.4,4.24959]
[1744338627066,3.007,1547.5,1547.3,0.00967804]
[1744338627372,1.29349,1547.4,1547.3,0.00967804]
[1744338627869,4.49179,1547.4,1547.3,0.00967804]
[1744338628878,3.1983,1547.4,1547.3,1.30325804]
[1744338629083,0.00967804,1547.6,1547.5,1.29341]
[1744338629385,0.00967804,1547.6,1547.5,4.50121]
[1744338629573,0.00967804,1547.6,1547.5,10.28046478]
[1744338629776,0.00967804,1547.6,1547.5,13.33586478]
[1744338630177,0.00967804,1547.6,1547.5,7.04245478]
[1744338630476,0.00967804,1547.6,1547.5,5.12806478]
[1744338630674,0.00967804,1547.6,1547.5,7.55661]
[1744338631282,0.00967804,1547.6,1547.5,12.55661]
[1744338631677,0.00967804,1547.6,1547.5,7.55661]
[1744338636384,0.00967804,1547.6,1547.3,5.85767804]
[1744338636582,1.30302804,1547.6,1547.4,4.38488]
[1744338636783,3.1784,1547.5,1547.4,4.38488]
[1744338636983,0.00967804,1547.6,1547.5,1.29341]
[1744338637583,0.00967804,1547.6,1547.4,7.59265]
[1744338638079,0.00967804,1547.6,1547.5,1.29341]
[1744338638284,0.00967804,1547.6,1547.5,4.38481]
[1744338638987,2.68,1548.1,1547.5,9.38481]
[1744338639188,3.1784,1548.0,1547.9,1.29303]
[1744338639492,3.1784,1548.0,1547.6,14.0434]
[1744338639789,3.1784,1548.0,1547.7,3.129]
[1744338639983,4.47141,1548.0,1547.7,3.129]
[1744338640186,3.1784,1548.0,1547.7,3.129]
[1744338640587,3.18807804,1548.0,1547.7,3.129]
[1744338640894,4.50099,1547.8,1547.6,5.848]
[1744338641088,3.1024,1547.7,1547.6,5.848]
[1744338641291,3.2078,1547.8,1547.6,5.848]
[1744338641292,0.00967804,1548.0,1547.6,3.2078]
[1744338641592,3.1024,1547.9,1547.8,1.29311]
[1744338642090,3.1024,1547.9,1547.8,4.50091]
[1744338642287,0.00967804,1548.0,1547.9,1.29308]
[1744338642492,0.00967804,1548.0,1547.9,13.04428]
[1744338642690,7.53811191,1548.3,1548.2,1.29283]
[1744338642895,12.99268469,1548.4,1548.1,1.29287]
[1744338642896,2.8974,1548.4,1548.1,1.29287]
[1744338643090,4.19014,1548.3,1548.2,3.1826]
[1744338643293,2.8974,1548.3,1548.0,3.2078]
[1744338643596,4.1902,1548.3,1548.0,4.50079]
[1744338643797,4.19987804,1548.3,1548.0,7.69306804]
[1744338643993,2.90707804,1548.3,1548.0,6.40007804]
[1744338644296,1.29283,1548.2,1548.0,6.40007804]
[1744338644493,4.19031,1548.1,1548.0,0.00967804]
[1744338644695,6.80201,1548.1,1548.0,0.00967804]
[1744338644995,6.80201,1548.1,1547.4,1.29349]
[1744338644996,1.29324,1547.7,1547.4,1.29349]
[1744338645194,1.29322,1547.8,1547.5,1.2934]
[1744338645389,3.2078,1548.0,1547.5,3.2078]
[1744338645595,3.24160804,1548.3,1547.8,3.2078]
[1744338645596,0.00967804,1548.3,1547.8,3.2078]
[1744338645796,2.9056,1548.2,1547.6,9.0548]
[1744338645996,2.9056,1548.2,1548.1,1.29291]
[1744338646489,0.00967804,1548.3,1548.2,1.29283]
[1744338646893,0.00967804,1548.3,1548.2,4.50063]
[1744338648199,0.00967804,1548.3,1548.2,7.61373]
[1744338650198,7.53811191,1548.7,1548.6,1.29249]
[1744338650399,7.53811191,1548.7,1548.6,4.50029]
[1744338650797,7.53811191,1548.7,1548.4,8.8849]
[1744338651101,7.53811191,1548.7,1548.5,1.29255]
[1744338651400,1.29257,1548.5,1548.4,3.2078]
[1744338651695,12.28624,1548.5,1547.9,0.78893282]
[1744338651888,1.29295,1548.1,1547.9,3.75153282]
[1744338652088,3.2078,1548.3,1547.9,3.75153282]
[1744338652301,5.5995,1548.2,1547.9,2.97227804]
[1744338652706,1.29295,1548.1,1547.9,2.97227804]
[1744338652998,4.30909,1548.0,1547.9,0.00967804]
[1744338653198,3.0161,1548.0,1547.9,0.00967804]
[1744338653394,4.30909,1548.0,1547.9,0.00967804]
[1744338653597,9.30909,1548.0,1547.9,0.00967804]
[1744338653897,8.0161,1548.0,1547.9,0.00967804]
[1744338654100,3.0161,1548.0,1547.9,0.00967804]
[1744338655091,4.30909,1548.0,1547.9,0.00967804]
[1744338655295,3.0161,1548.0,1547.9,1.30275804]
[1744338655799,11.6372,1548.2,1547.9,0.00967804]
[1744338655994,4.51289,1548.0,1547.9,0.00967804]
[1744338656604,12.72069,1548.0,1547.9,0.00967804]
[1744338657404,3.2199,1548.0,1547.9,0.00967804]
[1744338658204,4.51289,1548.0,1547.9,0.00967804]
[1744338659302,3.2199,1548.0,1547.9,0.00967804]
[1744338659698,3.2199,1548.0,1547.9,3.22997804]
[1744338659899,3.2199,1548.0,1547.9,4.52305804]
[1744338660405,3.2199,1548.0,1547.9,3.22997804]
[1744338660605,4.51289,1548.0,1547.9,3.22997804]
[1744338661508,3.2199,1548.0,1547.9,3.22997804]
[1744338662110,3.2199,1548.0,1547.9,4.52305804]
[1744338662615,9.72225,1548.2,1548.0,1.29297]
[1744338662800,12.81965,1548.2,1548.0,4.23587]
[1744338663313,12.81963,1548.2,1548.0,4.23587]
[1744338663500,12.81963,1548.2,1548.0,2.9429]
[1744338663704,1.29291,1548.1,1548.0,2.9429]
[1744338663903,4.53021,1548.1,1548.0,2.9429]
[1744338664102,3.2373,1548.1,1547.9,0.00967804]
[1744338664402,2.5834,1548.2,1548.0,4.50079]
[1744338664710,5.846,1548.4,1548.1,3.1881]
[1744338664912,10.37601,1548.4,1548.1,9.81515]
[1744338665103,9.0833,1548.4,1548.1,8.5223]
[1744338665299,3.2078,1548.5,1548.3,1.29274]
[1744338665506,7.54778995,1548.7,1548.5,1.29253]
[1744338665701,7.54778995,1548.7,1548.5,4.50029]
[1744338665913,7.54778995,1548.7,1548.6,4.48059]
[1744338666611,7.54778995,1548.7,1548.3,3.98705478]
[1744338666810,1.29283,1548.2,1548.1,12.10545478]
[1744338667006,14.7584,1548.6,1548.1,0.77925478]
[1744338667206,1.29283,1548.2,1548.1,0.77925478]
[1744338667412,1.29299,1548.0,1547.9,0.00967804]
[1744338667613,3.2078,1548.2,1547.9,0.00967804]
[1744338667913,1.29293,1548.1,1547.9,1.30268804]
[1744338668110,3.2078,1548.2,1547.9,4.54668804]
[1744338668313,6.49263849,1548.6,1548.4,1.29264]
[1744338668512,3.86152,1548.6,1548.4,1.29264]
[1744338668809,3.86152,1548.6,1548.5,3.244]
[1744338669011,7.54778995,1548.7,1548.5,3.244]
[1744338669211,7.54778995,1548.7,1548.5,4.5365]
[1744338669511,7.54778995,1548.7,1548.5,3.244]
[1744338669914,8.84023995,1548.7,1548.5,4.53657]
[1744338670106,7.54778995,1548.7,1548.5,7.7443]
[1744338670303,7.54778995,1548.7,1548.6,4.52119]
[1744338670509,7.54778995,1548.7,1548.6,7.21239]
[1744338670815,7.54778995,1548.7,1548.6,9.76119]
[1744338672212,7.54778995,1548.7,1548.6,14.76119]
[1744338673118,0.00967804,1548.7,1548.6,14.76119]
[1744338674215,0.00967804,1548.7,1548.6,20.47419]
[1744338674911,0.00967804,1548.7,1548.6,21.25344478]
[1744338675105,0.999,1548.9,1548.8,1.29232]
[1744338675305,5.00072,1549.2,1548.8,3.2078]
[1744338675511,3.7087,1549.2,1548.8,3.2078]
[1744338675715,3.2078,1549.0,1548.7,1.29241]
[1744338675912,1.2922,1549.0,1548.7,3.0726]
[1744338676108,1.29862289,1549.0,1548.7,4.37461804]
[1744338676412,0.00642289,1549.0,1548.8,3.0726]
[1744338676612,1.29232,1548.8,1548.7,0.00967804]
[1744338677011,3.21422289,1549.0,1548.7,0.00967804]
[1744338677012,1.29227,1548.9,1548.7,1.30206804]
[1744338677214,1.29224,1548.9,1548.7,1.30206804]
[1744338677413,1.29224,1548.9,1548.7,4.37466804]
[1744338677710,1.29224,1548.9,1548.8,3.0726]
[1744338677911,4.50643289,1549.0,1548.8,4.36492]
[1744338678317,1.29224,1548.9,1548.8,4.36492]
[1744338678513,1.29224,1548.9,1548.8,3.0726]
[1744338678817,1.29224,1548.9,1548.7,0.00967804]
[1744338678818,1.29232,1548.8,1548.7,0.00967804]
[1744338679115,7.03802,1548.8,1548.7,0.00967804]
[1744338679416,12.03802,1548.8,1548.7,0.00967804]
[1744338680211,1.29267,1548.4,1548.2,0.77925478]
[1744338680405,1.29267,1548.4,1548.2,5.31773478]
[1744338680611,1.2926,1548.5,1548.3,1.2927]
[1744338680813,11.4577,1548.8,1548.4,1.29265]
[1744338681117,11.4577,1548.8,1548.3,3.2078]
[1744338681312,11.4577,1548.8,1548.5,1.29253]
[1744338681616,1.29243,1548.7,1548.5,1.29253]
[1744338682315,1.29243,1548.7,1548.4,3.25537804]
[1744338682316,11.4577,1548.8,1548.4,3.25537804]
[1744338682618,1.29257,1548.5,1548.4,3.25537804]
[1744338682817,1.29237,1548.8,1548.6,1.29246]
[1744338683017,1.29227,1548.9,1548.7,1.29237]
[1744338683419,1.29226,1548.9,1548.5,3.3908]
[1744338683619,4.50645289,1549.0,1548.8,1.29231]
[1744338683816,1.29224,1548.9,1548.8,1.29231]
[1744338684213,3.21422289,1549.0,1548.9,1.29224]
[1744338684415,3.21422289,1549.0,1548.6,3.3908]
[1744338684622,0.00642289,1549.0,1548.9,1.29224]
[1744338684820,4.50645289,1549.0,1548.8,3.1263]
[1744338685027,3.21422289,1549.0,1548.9,1.29224]
[1744338685319,0.00642289,1549.0,1548.9,1.29224]
[1744338685915,0.00642289,1549.0,1548.9,4.41854]
[1744338686121,0.00642289,1549.0,1548.9,1.29224]
[1744338686914,3.14752289,1549.0,1548.9,1.29224]
[1744338687114,4.43974289,1549.0,1548.8,4.41862]
[1744338687616,3.1411,1548.9,1548.8,4.41862]
[1744338688127,0.00642289,1549.0,1548.9,1.29224]
[1744338688421,0.00642289,1549.0,1548.9,4.59924]
[1744338688822,1.29858289,1549.0,1548.9,3.307]
[1744338689021,1.29858289,1549.0,1548.8,1.29226]
[1744338689729,4.62744,1548.9,1548.8,3.307]
[1744338690030,1.29249,1548.6,1548.5,0.77723869]
[1744338690426,1.29249,1548.6,1548.4,4.60928804]
[1744338690732,3.3352,1548.6,1548.5,1.29257]
[1744338690918,3.3352,1548.6,1548.5,4.70677]
[1744338691525,4.62769,1548.6,1548.5,3.4142]
[1744338691721,1.29257,1548.5,1548.4,0.00967804]
[1744338691924,7.75287,1548.5,1548.4,0.00967804]
[1744338692122,1.29274,1548.3,1548.2,24.75239199]
[1744338692426,6.0788,1548.4,1548.2,26.04514199]
[1744338692622,4.54524,1548.3,1548.2,24.75239199]
[1744338693516,3.2525,1548.3,1548.1,3.42387804]
[1744338693819,1.29283,1548.2,1548.1,3.42387804]
[1744338694025,4.5453,1548.3,1548.1,4.71677804]
[1744338695030,3.4134,1548.2,1548.1,4.71677804]
[1744338695526,10.41923,1548.2,1548.1,0.00967804]
[1744338695828,1.29299,1548.0,1547.9,9.83657608]
[1744338696024,3.2078,1548.0,1547.9,9.83657608]
[1744338696524,1.29299,1548.0,1547.9,9.83657608]
[1744338697122,4.50079,1548.0,1547.9,9.83657608]
[1744338697422,1.29308,1547.9,1547.8,0.00967804]
[1744338697627,4.52128,1547.9,1547.8,0.00967804]
[1744338698732,10.05628,1547.9,1547.8,0.00967804]
[1744338699229,15.05628,1547.9,1547.8,0.00967804]
[1744338700623,1.29341,1547.5,1547.4,9.83657608]
[1744338701227,4.42731,1547.5,1547.4,9.83657608]
[1744338702831,4.42731,1547.5,1547.3,0.00967804]
[1744338702832,1.29349,1547.4,1547.3,0.00967804]
[1744338703131,4.67089,1547.4,1547.3,0.00967804]
[1744338704029,9.56507,1547.6,1547.3,1.30318804]
[1744338704225,1.29341,1547.5,1547.4,3.1852]
[1744338704633,4.67081,1547.5,1547.4,3.1852]
[1744338704926,4.67081,1547.5,1547.3,0.00967804]
[1744338704927,1.29349,1547.4,1547.3,0.00967804]
[1744338705128,4.67089,1547.4,1547.3,0.00967804]
[1744338705828,7.48679,1547.4,1547.3,0.00967804]
[1744338707035,3.23397,1547.3,1546.8,9.83657608]
[1744338707234,4.50171,1546.9,1546.8,13.13407608]
[1744338707423,4.50171,1546.9,1546.8,9.83657608]
[1744338707625,8.7448,1546.9,1546.6,8.8555]
[1744338707926,3.1808,1546.8,1546.6,8.8555]
[1744338708129,4.4748,1546.8,1546.7,3.2975]
[1744338708424,8.75447804,1546.9,1546.7,3.2975]
[1744338708628,5.54667804,1546.9,1546.7,3.2975]
[1744338708818,5.54667804,1546.9,1546.8,1.294]
[1744338709221,5.54667804,1546.9,1546.8,3.1859]
[1744338709531,6.84058804,1546.9,1546.8,3.1859]
[1744338709736,5.54667804,1546.9,1546.8,3.1859]
[1744338711439,6.84058804,1546.9,1546.8,3.1859]
[1744338711728,10.04838804,1546.9,1546.8,3.1859]
[1744338712529,1.29406,1546.8,1546.6,5.56767804]
[1744338712729,10.04846804,1546.9,1546.7,3.161]
[1744338712925,8.75447804,1546.9,1546.7,3.161]
[1744338713126,1.294,1546.8,1546.7,3.161]
[1744338713732,0.00967804,1546.9,1546.8,1.294]
[1744338713928,1.30358804,1546.9,1546.7,4.45502]
[1744338714332,1.30358804,1546.9,1546.8,3.161]
[1744338714528,0.00967804,1546.9,1546.8,4.455]
[1744338714733,1.30358804,1546.9,1546.8,3.161]
[1744338715034,0.00967804,1546.9,1546.8,4.455]
[1744338715229,1.30358804,1546.9,1546.8,3.161]
[1744338716132,1.29408,1546.7,1546.6,5.56767804]
[1744338716336,3.21747804,1546.9,1546.6,5.56767804]
[1744338716533,0.00967804,1546.9,1546.6,5.56767804]
[1744338716740,1.29408,1546.7,1546.6,2.77537804]
[1744338718232,4.70878,1546.7,1546.6,2.77537804]
[1744338718738,4.70878,1546.7,1546.6,0.00967804]
[1744338719336,3.2355,1546.6,1546.1,6.0877]
[1744338719638,1.29441,1546.3,1546.2,3.4203]
[1744338720139,5.54,1546.5,1546.4,1.29433]
[1744338720337,1.29441,1546.3,1546.2,3.4203]